bitfinex-derivatives/quotes_ETHF0:USTF0_20250106
["timestamp","ask_amount","ask_price","bid_price","bid_amount"]
[1736162949366,3.70398461,3655.4,3654.5,3.2078]
[1736162949566,0.27371,3654.8,3654.7,0.27371]
[1736162949773,3.2078,3655.1,3654.5,3.2078]
[1736162949968,0.68872,3654.7,3654.6,0.27371]
[1736162950672,1.74972,3654.7,3654.6,0.27371]
[1736162954079,1.476,3654.7,3654.5,40.8]
[1736162954272,0.27372,3654.6,3654.5,41.07373]
[1736162955379,0.27372,3654.6,3654.5,40.8]
[1736162956875,0.27373,3654.5,3654.4,0.27373]
[1736162957079,0.27375,3654.3,3654.2,0.27374]
[1736162957272,0.27375,3654.3,3654.2,41.07374]
[1736162957473,0.27375,3654.3,3654.2,40.8]
[1736162958776,3.48155,3654.3,3654.2,40.8]
[1736162959079,3.48155,3654.3,3654.2,41.4841]
[1736162959280,3.48155,3654.3,3654.2,0.6841]
[1736162960381,3.48155,3654.3,3654.2,0.0055]
[1736162962875,0.27375,3654.3,3654.2,0.0055]
[1736162967480,3.48155,3654.3,3654.2,0.0055]
[1736162973389,4.54355,3654.3,3654.2,0.27925]
[1736162973583,4.54355,3654.3,3654.2,0.0055]
[1736162979093,5.53264287,3654.3,3654.2,0.0055]
[1736162983497,5.97254287,3654.3,3654.2,0.0055]
[1736162984389,9.19737632,3654.3,3654.2,0.0055]
[1736162985893,5.97254287,3654.3,3654.2,0.0055]
[1736162989596,9.19737632,3654.3,3654.2,0.0055]
[1736162992002,5.97254287,3654.3,3654.2,0.0055]
[1736162994896,0.27378,3653.8,3653.7,40.8]
[1736162995292,1.26287287,3653.8,3653.7,40.8]
[1736162997692,1.26287287,3653.8,3653.5,0.7177]
[1736162997693,0.27379,3653.6,3653.5,0.7177]
[1736162997899,1.33479,3653.6,3653.5,2.12609287]
[1736162998102,1.33479,3653.6,3653.5,42.92609287]
[1736162998900,1.33479,3653.6,3653.5,47.66041913]
[1736162999998,1.33479,3653.6,3653.5,54.0478442]
[1736163001708,1.33479,3653.6,3653.5,47.66041913]
[1736163003807,1.33479,3653.6,3653.5,54.06376124]
[1736163004808,1.33479,3653.6,3653.5,47.66041913]
[1736163006707,1.061,3653.6,3653.5,47.66041913]
[1736163007111,1.33479,3653.6,3653.5,47.66041913]
[1736163008809,1.33479,3653.6,3653.5,47.38661913]
[1736163009005,1.33479,3653.6,3653.5,4.73432626]
[1736163010113,1.76589,3653.6,3653.5,4.73432626]
[1736163010506,2.75498287,3653.6,3653.5,4.73432626]
[1736163010708,3.16808287,3653.6,3653.5,4.73432626]
[1736163011309,3.16808287,3653.6,3653.4,6.40399039]
[1736163011310,0.2738,3653.5,3653.4,4.26941871]
[1736163012321,0.2738,3653.5,3653.4,5.53232158]
[1736163012518,0.2738,3653.5,3653.4,1.26290287]
[1736163012519,3.50195239,3653.5,3653.4,1.26290287]
[1736163012825,3.50195239,3653.5,3653.4,42.06290287]
[1736163013219,3.50195239,3653.5,3653.4,40.8]
[1736163013421,0.27382,3653.3,3653.2,4.54323871]
[1736163013619,0.27382,3653.3,3653.2,4.26941871]
[1736163013820,0.27382,3653.3,3653.2,47.20399039]
[1736163014825,0.27382,3653.3,3653.2,45.06830462]
[1736163016722,0.27382,3653.3,3653.2,40.8]
[1736163016917,0.27382,3653.3,3653.2,41.78909287]
[1736163017123,0.27382,3653.3,3653.2,42.06291287]
[1736163023131,0.27382,3653.3,3653.2,41.07382]
[1736163024237,0.27382,3653.3,3653.2,40.8]
[1736163024437,0.27382,3653.3,3653.2,0.27382]
[1736163024639,0.27382,3653.3,3653.1,4.26830462]
[1736163024640,0.27382,3653.2,3653.1,4.54212462]
[1736163024834,0.71942,3653.2,3653.1,4.54212462]
[1736163030233,1.70851287,3653.2,3653.1,4.26830462]
[1736163030438,1.70851287,3653.2,3653.1,4.54213462]
[1736163030838,1.70851287,3653.2,3653.1,0.27383]
[1736163031532,0.71942,3653.2,3653.1,0.27383]
[1736163033142,0.71942,3653.2,3653.1,41.07383]
[1736163041845,1.78042,3653.2,3653.1,41.07383]
[1736163043347,1.78042,3653.2,3653.1,41.51163]
[1736163045248,1.78042,3653.2,3653.1,45.77993462]
[1736163046149,0.71942,3653.2,3653.1,45.77993462]
[1736163046356,1.78042,3653.2,3653.1,45.77993462]
[1736163047747,0.4456,3653.2,3653.1,45.77993462]
[1736163048050,1.061,3653.2,3653.1,45.77993462]
[1736163048649,3.50196239,3653.4,3653.1,45.50610462]
[1736163048954,3.22815239,3653.4,3653.3,1.26291287]
[1736163049247,3.22815239,3653.5,3653.4,0.27381]
[1736163049446,3.22815239,3653.5,3653.4,1.26290287]
[1736163049652,3.22815239,3653.5,3653.4,43.26094319]
[1736163050046,3.22815239,3653.5,3653.4,42.06290287]
[1736163050245,0.48114136,3653.5,3653.4,47.06290287]
[1736163050442,0.48114136,3653.5,3653.4,48.26094319]
[1736163050647,0.48114136,3654.3,3653.4,60.53586105]
[1736163050846,0.48114136,3654.3,3654.2,4.47064287]
[1736163051854,1.33473,3654.4,3654.2,48.26786413]
[1736163052051,1.33473,3654.4,3654.3,1.26283287]
[1736163052454,1.33473,3654.4,3654.3,0.98909287]
[1736163052649,0.27374,3654.3,3654.2,45.06006413]
[1736163052952,1.26283287,3654.3,3654.2,4.26006413]
[1736163053146,1.26283287,3654.3,3654.2,3.58136413]
[1736163053346,0.27375,3654.2,3654.1,3.58136413]
[1736163053548,0.69965,3654.2,3654.1,3.58136413]
[1736163054349,1.68874287,3654.2,3654.1,1.54526413]
[1736163054555,0.69965,3654.2,3654.1,1.55066413]
[1736163054855,0.2738,3653.5,3653.4,4.47070287]
[1736163055058,1.3348,3653.5,3653.4,3.48161]
[1736163056452,1.3348,3653.5,3653.4,3.2078]
[1736163056659,1.3348,3653.5,3653.4,3.48161]
[1736163057358,1.3348,3653.5,3653.4,3.2078]
[1736163058263,1.3348,3653.5,3653.4,3.48161]
[1736163058466,1.061,3653.5,3653.4,3.48161]
[1736163059153,1.061,3653.5,3653.4,44.28161]
[1736163059754,2.15106137,3653.7,3653.4,44.0078]
[1736163059957,2.15106137,3653.7,3653.6,2.46601814]
[1736163060161,1.061,3653.9,3653.6,2.19222814]
[1736163060357,1.061,3653.9,3653.8,0.27378]
[1736163060761,2.15106137,3654.0,3653.8,44.0078]
[1736163060971,2.15106137,3654.0,3653.9,0.27377]
[1736163061166,2.15106137,3654.0,3653.9,0.69177]
[1736163061670,1.33476,3654.1,3653.9,0.69177]
[1736163061671,1.33476,3654.1,3654.0,0.27376]
[1736163062565,1.061,3654.1,3654.0,0.27376]
[1736163062965,1.52061,3654.6,3654.0,0.27376]
[1736163062966,2.15106137,3654.5,3654.2,0.27374]
[1736163063166,2.15106137,3654.5,3654.4,2.46595814]
[1736163063969,2.92879154,3654.8,3654.7,0.27371]
[1736163064268,2.35929154,3654.8,3654.7,5.67373814]
[1736163064468,2.35929154,3654.8,3654.7,10.67373814]
[1736163064761,1.061,3655.3,3655.2,0.27367]
[1736163064959,1.061,3655.3,3655.2,44.28147]
[1736163067667,0.27363,3655.8,3655.7,0.27363]
[1736163067870,1.33463,3655.8,3655.7,0.27363]
[1736163069370,0.27366,3655.5,3655.4,0.27365]
[1736163070165,1.061,3655.8,3655.3,2.19222814]
[1736163070370,0.27365,3655.7,3655.6,0.27364]
[1736163070670,0.27365,3655.6,3655.5,0.27365]
[1736163070865,0.68745,3655.6,3655.5,0.27365]
[1736163071663,0.4138,3655.6,3655.2,44.0078]
[1736163071865,0.4138,3655.6,3655.0,2.19222814]
[1736163071866,0.4138,3655.6,3655.1,0.27368]
[1736163072067,0.27367,3655.2,3655.1,0.27368]
[1736163072573,0.27367,3655.4,3655.3,0.27366]
[1736163072773,0.68745,3655.6,3655.5,0.27365]
[1736163072965,1.74845,3655.6,3655.5,0.27365]
[1736163073165,0.4138,3655.6,3655.5,0.27365]
[1736163073362,1.4748,3655.6,3655.5,0.27365]
[1736163075267,0.27366,3655.5,3655.4,0.27365]
[1736163076463,3.2078,3655.7,3655.3,2.19222814]
[1736163076672,3.2078,3655.7,3655.6,2.46586814]
[1736163077064,3.2078,3655.7,3655.6,43.26586814]
[1736163077270,4.2688,3655.7,3655.6,43.26586814]
[1736163077463,3.2078,3655.7,3655.6,43.26586814]
[1736163077672,0.71062,3655.9,3655.6,42.99222814]
[1736163077872,1.061,3655.8,3655.7,0.27364]
[1736163078171,0.437,3655.9,3655.6,42.99222814]
[1736163078371,3.2078,3656.1,3656.0,0.27361]
[1736163078571,4.2688,3656.1,3656.0,2.46583814]
[1736163079472,4.54241,3656.1,3656.0,2.46583814]
[1736163079873,4.54241,3656.1,3656.0,0.27361]
[1736163080075,4.2688,3656.1,3656.0,0.27361]
[1736163080277,3.48141,3656.1,3656.0,0.27361]
[1736163080468,4.54241,3656.1,3656.0,0.27361]
[1736163081775,3.48141,3656.1,3656.0,0.27361]
[1736163081965,4.54141,3656.1,3656.0,0.27361]
[1736163085076,3.48141,3656.1,3656.0,0.27361]
[1736163085272,4.54141,3656.1,3656.0,0.27361]
[1736163086173,1.06,3656.1,3656.0,2.46583814]
[1736163086471,1.06,3656.1,3655.7,3.2078]
[1736163086682,0.27362,3656.0,3655.9,0.27361]
[1736163087177,0.27362,3656.0,3655.9,41.07361]
[1736163087476,0.27361,3656.2,3656.1,0.2736]
[1736163087677,1.33361,3656.2,3656.1,0.2736]
[1736163088473,0.27361,3656.1,3656.0,0.27361]
[1736163088679,1.3416,3656.2,3656.1,0.27361]
[1736163090377,0.27361,3656.1,3656.0,0.27361]
[1736163090771,0.27361,3656.0,3655.9,41.07362]
[1736163090978,0.27361,3656.0,3655.9,40.8]
[1736163094084,0.27361,3656.0,3655.9,41.07362]
[1736163094283,0.27361,3656.0,3655.9,40.8]
[1736163096073,0.27361,3656.0,3655.9,41.07362]
[1736163096475,0.4152,3656.1,3655.9,40.8]
[1736163096676,0.68881,3656.1,3656.0,0.27361]
[1736163097080,0.4152,3656.1,3656.0,0.27361]
[1736163097387,1.4832,3656.1,3656.0,0.27361]
[1736163097681,0.4152,3656.1,3656.0,0.27361]
[1736163097881,1.4832,3656.1,3656.0,0.27361]
[1736163101887,0.4152,3656.1,3656.0,0.27361]
[1736163105181,0.4152,3656.1,3655.9,44.0078]
[1736163105182,0.831,3656.3,3655.9,44.0078]
[1736163105485,0.831,3656.3,3656.2,2.46582814]
[1736163105684,1.899,3656.3,3656.2,2.46582814]
[1736163106084,0.831,3656.3,3656.2,2.46582814]
[1736163106286,1.899,3656.3,3656.2,2.46582814]
[1736163108082,1.4898,3656.3,3656.2,2.46582814]
[1736163109585,3.2078,3656.7,3656.2,2.19222814]
[1736163109801,1.307,3657.0,3656.9,0.27355]
[1736163109994,0.8913,3657.0,3656.9,0.27355]
[1736163110289,0.8913,3657.0,3656.9,43.26577814]
[1736163112684,0.8913,3657.0,3656.6,6.3900962]
[1736163112889,0.27356,3656.7,3656.6,5.9852562]
[1736163114496,0.27356,3656.7,3656.6,0.27356]
[1736163115894,3.2078,3656.8,3656.5,2.19222814]
[1736163116103,0.4217,3656.6,3655.9,3.89185]
[1736163116397,0.27361,3656.3,3656.2,0.27359]
[1736163117391,0.27361,3656.3,3656.2,2.46581814]
[1736163120506,1.13699,3656.4,3656.3,0.27359]
[1736163120696,1.9304,3656.4,3656.3,0.27359]
[1736163121011,2.20398,3656.4,3656.3,0.27359]
[1736163121500,2.20398,3656.4,3656.3,41.07359]
[1736163123100,1.9304,3656.4,3656.3,41.07359]
[1736163123392,1.13698,3656.4,3656.3,41.07359]
[1736163123697,2.20398,3656.4,3656.3,41.07359]
[1736163127004,2.20398,3656.4,3656.3,41.75729]
[1736163127492,1.9304,3656.4,3656.3,41.75729]
[1736163127907,2.20398,3656.4,3656.3,41.75729]
[1736163128203,1.9304,3656.4,3656.3,41.75729]
[1736163128602,2.20398,3656.4,3656.3,41.75729]
[1736163131108,1.9304,3656.4,3656.3,41.75729]
[1736163131307,2.20398,3656.4,3656.3,41.75729]
[1736163131705,1.13698,3656.4,3656.3,41.75729]
[1736163131907,0.8634,3656.4,3656.3,41.75729]
[1736163132809,1.13698,3656.4,3656.3,41.75729]
[1736163134007,1.13698,3656.4,3656.3,0.95729]
[1736163134902,0.8634,3656.4,3656.3,0.95729]
[1736163135505,1.13698,3656.4,3656.3,0.95729]
[1736163136206,0.8634,3656.4,3656.3,0.95729]
[1736163136907,1.13698,3656.4,3656.3,0.95729]
[1736163139611,1.13698,3656.4,3656.3,0.6837]
[1736163139811,1.13698,3656.4,3656.3,0.95729]
[1736163141306,1.13698,3656.4,3656.3,0.6837]
[1736163142207,1.13698,3656.4,3656.3,0.95729]
[1736163142810,1.13698,3656.4,3656.3,0.6837]
[1736163143012,0.27363,3655.8,3655.7,17.8452999]
[1736163143310,1.34063,3655.8,3655.7,18.1189399]
[1736163143506,1.34063,3655.8,3655.7,50.12517163]
[1736163143811,1.34063,3655.8,3655.7,40.8]
[1736163144009,1.34063,3655.8,3655.7,41.07364]
[1736163146705,2.21483,3655.8,3655.7,41.07364]
[1736163148011,2.21483,3655.8,3655.7,40.8]
[1736163148913,0.27367,3655.2,3655.1,12.00159827]
[1736163149613,0.27367,3655.2,3655.1,8.79379827]
[1736163149815,0.27367,3655.2,3655.1,49.59379827]
[1736163150412,0.27367,3655.2,3655.1,41.07367]
[1736163151714,0.27367,3655.2,3655.1,40.8]
[1736163151904,0.4263,3655.4,3654.7,5.40002814]
[1736163152104,0.2737,3655.0,3654.9,0.27369]
[1736163152305,1.3347,3655.0,3654.9,0.27369]
[1736163152613,1.3347,3655.0,3654.9,41.07369]
[1736163153018,1.11047,3655.4,3654.9,40.8]
[1736163153019,0.4263,3655.4,3654.9,40.8]
[1736163153316,1.061,3655.4,3655.3,2.46589814]
[1736163155118,0.27366,3655.4,3655.3,2.46589814]
[1736163155417,1.33466,3655.4,3655.3,2.46589814]
[1736163155617,1.33466,3655.4,3655.3,0.27367]
[1736163156218,0.27367,3655.3,3655.2,0.27367]
[1736163156519,1.061,3655.4,3655.0,0.27368]
[1736163156520,0.27369,3655.1,3655.0,0.27368]
[1736163158017,0.8426,3655.2,3654.9,40.8]
[1736163158323,0.69499,3655.0,3654.9,41.07369]
[1736163158820,0.69499,3655.0,3654.9,41.0737]
[1736163159124,0.69499,3655.0,3654.9,40.8]
[1736163160516,0.4213,3655.0,3654.6,0.27372]
[1736163160726,0.27373,3654.6,3654.5,0.27372]
[1736163161024,1.33473,3654.6,3654.5,41.07372]
[1736163162521,1.33473,3654.6,3654.5,41.75772]
[1736163163224,1.33473,3654.6,3654.5,42.17482]
[1736163164825,1.061,3654.6,3654.5,42.17482]
[1736163165227,1.33472,3654.6,3654.5,42.17482]
[1736163165820,1.061,3654.6,3654.5,42.17482]
[1736163166221,1.33472,3654.6,3654.5,42.17482]
[1736163166818,1.061,3654.6,3654.5,42.17482]
[1736163167026,1.33472,3654.6,3654.5,42.17482]
[1736163167320,0.27371,3654.8,3654.7,0.2737]
[1736163167525,1.33471,3654.8,3654.7,0.2737]
[1736163169325,0.27371,3654.8,3654.7,0.2737]
[1736163169524,1.33471,3654.8,3654.7,0.2737]
[1736163169724,0.27371,3654.8,3654.7,0.2737]
[1736163169922,1.33471,3654.8,3654.7,0.2737]
[1736163171525,0.27371,3654.8,3654.7,0.2737]
[1736163171726,1.33471,3654.8,3654.7,0.2737]
[1736163173427,1.3347,3654.8,3654.7,2.46592814]
[1736163173631,1.061,3654.8,3654.7,2.46592814]
[1736163173831,1.3347,3654.8,3654.7,2.46592814]
[1736163174921,4.7346,3655.2,3655.1,0.27368]
[1736163174922,3.2078,3655.2,3655.1,0.27368]
[1736163175226,1.061,3655.2,3655.1,2.46590814]
[1736163177123,0.27366,3655.5,3655.1,2.19222814]
[1736163177423,0.27366,3655.5,3655.4,0.27366]
[1736163177620,1.33466,3655.5,3655.4,0.27366]
[1736163177823,0.27365,3655.6,3655.5,0.27365]
[1736163178020,0.4116,3655.7,3655.4,2.19222814]
[1736163178221,1.061,3655.6,3655.5,0.4298]
[1736163178428,1.061,3655.7,3655.6,0.27364]
[1736163178626,1.061,3655.7,3655.6,41.07364]
[1736163182328,1.061,3655.8,3655.6,40.8]
[1736163182533,3.48142,3656.0,3655.9,0.27362]
[1736163182726,1.061,3656.0,3655.9,0.27362]
[1736163182928,1.061,3656.0,3655.9,2.46584814]
[1736163183526,1.33461,3656.0,3655.9,2.46584814]
[1736163183923,1.061,3656.0,3655.9,2.46584814]
[1736163184228,1.33461,3656.0,3655.9,2.46584814]
[1736163184627,1.33461,3656.0,3655.9,0.27362]
[1736163185228,1.061,3656.0,3655.6,46.20002814]
[1736163185429,0.27364,3655.8,3655.7,0.27363]
[1736163185634,4.2688,3656.0,3655.4,4.24890302]
[1736163185831,0.4098,3655.7,3655.4,4.24890302]
[1736163186032,0.27365,3655.5,3655.4,4.52255302]
[1736163186232,0.27365,3655.5,3655.4,4.24890302]
[1736163186433,0.27365,3655.5,3655.4,4.52256302]
[1736163186731,0.72195,3655.5,3655.4,4.52256302]
[1736163186935,0.72195,3655.5,3655.4,0.27366]
[1736163188128,0.72195,3655.5,3655.4,0.95756]
[1736163189039,0.4483,3655.5,3655.4,0.95756]
[1736163189234,0.68344,3655.7,3655.6,0.27364]
[1736163189435,1.4708,3655.7,3655.6,2.46586814]
[1736163190035,1.74444,3655.7,3655.6,41.07364]
[1736163190625,1.4708,3655.7,3655.4,0.6839]
[1736163190830,0.27365,3655.5,3655.4,0.95756]
[1736163191128,0.27365,3655.5,3655.4,41.75756]
[1736163191324,1.4708,3655.7,3655.5,0.27364]
[1736163191325,0.27365,3655.6,3655.5,0.27364]
[1736163192438,1.74444,3655.7,3655.6,0.27364]
[1736163193336,0.27365,3655.6,3655.5,0.27364]
[1736163193936,0.27365,3655.5,3655.4,41.75755]
[1736163194330,1.4708,3655.7,3655.4,41.4839]
[1736163194532,0.27365,3655.6,3655.5,0.27364]
[1736163194733,1.74444,3655.7,3655.6,0.27364]
[1736163197045,1.4708,3655.7,3655.6,0.27364]
[1736163197235,1.4708,3655.7,3655.6,2.46586814]
[1736163197644,1.74444,3655.7,3655.6,2.46586814]
[1736163197941,1.74444,3655.7,3655.6,2.87996814]
[1736163198628,1.4708,3655.7,3655.6,2.87996814]
[1736163199632,0.4098,3655.7,3655.6,2.87996814]
[1736163199836,1.4708,3655.7,3655.6,2.87996814]
[1736163200237,1.061,3655.7,3655.6,6.08776814]
[1736163204943,1.14162,3655.9,3655.8,0.27363]
[1736163205148,1.929,3655.9,3655.8,0.27363]
[1736163205445,2.20262,3655.9,3655.8,0.27363]
[1736163211643,0.27364,3655.7,3655.4,4.24890302]
[1736163211843,1.929,3655.9,3655.4,4.52256302]
[1736163211844,0.27365,3655.5,3655.4,4.52256302]
[1736163212039,0.4139,3655.6,3655.4,4.24890302]
[1736163212239,0.4139,3655.6,3655.5,41.07365]
[1736163212643,1.4749,3655.6,3655.5,41.07365]
[1736163212944,1.061,3655.6,3655.5,41.07365]
[1736163213949,1.061,3655.6,3655.5,52.07881307]
[1736163214641,1.33464,3655.6,3655.5,52.07881307]
[1736163214843,1.33464,3655.6,3655.5,40.8]
[1736163218550,3.48016135,3655.6,3655.5,40.8]
[1736163220647,3.48016135,3655.6,3655.5,41.07365]
[1736163221653,3.20652135,3655.6,3655.5,41.07365]
[1736163222353,2.14552135,3655.6,3655.5,41.07365]
[1736163222549,2.14552135,3655.9,3655.5,45.05747715]
[1736163222751,2.14552135,3655.9,3655.8,3.48143]
[1736163223355,2.14552135,3655.9,3655.8,44.28143]
[1736163224053,1.061,3656.1,3656.0,0.27361]
[1736163225158,1.061,3656.1,3656.0,4.91162841]
[1736163227357,1.33461,3656.1,3656.0,4.91162841]
[1736163227658,1.33461,3656.1,3656.0,4.53302563]
[1736163228660,1.061,3656.1,3656.0,4.53302563]
[1736163230064,1.061,3656.1,3656.0,4.96481393]
[1736163230758,1.33461,3656.1,3656.0,4.96481393]
[1736163231451,1.33461,3656.1,3656.0,0.27361]
[1736163232161,1.061,3656.1,3656.0,0.27361]
[1736163232565,1.061,3656.1,3656.0,4.53221949]
[1736163233658,1.33461,3656.1,3656.0,4.53221949]
[1736163236953,1.33461,3656.1,3656.0,5.52005208]
[1736163239163,0.69269,3656.3,3656.0,5.24644208]
[1736163239361,1.75469,3656.3,3656.2,1.26143259]
[1736163239564,1.4811,3656.3,3656.2,1.26143259]
[1736163240066,0.27359,3656.4,3656.3,0.27359]
[1736163240264,1.33559,3656.4,3656.3,0.27359]
[1736163242164,1.062,3656.4,3656.3,0.27359]
[1736163242370,1.33558,3656.4,3656.3,0.27359]
[1736163243059,1.062,3656.4,3656.3,0.27359]
[1736163243260,1.33558,3656.4,3656.3,0.27359]
[1736163245367,0.27359,3656.3,3656.2,4.53219949]
[1736163245871,1.33559,3656.3,3656.2,4.53219949]
[1736163246767,1.33559,3656.3,3656.2,0.27359]
[1736163249067,0.2736,3656.2,3656.1,4.53220949]
[1736163249274,0.2736,3656.2,3656.1,4.25860949]
[1736163250160,2.46242822,3656.2,3656.1,3.58020949]
[1736163250363,5.67022822,3656.2,3656.1,2.22340949]
[1736163250666,5.67022822,3656.2,3656.1,1.54500949]
[1736163250874,8.61780256,3656.2,3655.8,40.8]
[1736163251173,0.27362,3655.9,3655.8,40.8]
[1736163251762,0.27362,3655.9,3655.8,41.07363]
[1736163252674,0.27362,3655.9,3655.8,40.8]
[1736163252873,0.27365,3655.8,3655.7,0.27363]
[1736163253065,0.27366,3655.6,3655.5,0.27364]
[1736163253269,1.33566,3655.6,3655.5,0.27364]
[1736163253470,1.33566,3655.6,3655.5,41.07364]
[1736163253969,1.33566,3655.6,3655.5,41.75754]
[1736163254776,1.33566,3655.6,3655.5,0.6839]
[1736163255171,1.33566,3655.6,3655.5,0.95755]
[1736163255377,1.33566,3655.6,3655.5,0.6839]
[1736163255577,1.33566,3655.6,3655.5,0.95755]
[1736163256877,1.33566,3655.6,3655.5,0.6839]
[1736163260176,3.52448822,3655.6,3655.5,0.6839]
[1736163260377,5.67369868,3655.6,3655.5,0.6839]
[1736163260576,10.40003868,3655.6,3654.7,6.38957219]
[1736163260776,0.2737,3654.8,3654.7,47.18957219]
[1736163260972,1.3357,3654.8,3654.7,47.18957219]
[1736163261680,1.3357,3654.8,3654.7,6.38957219]
[1736163261881,1.062,3654.8,3654.6,3.48152]
[1736163262175,0.27371,3654.7,3654.6,44.28152]
[1736163262878,1.062,3654.8,3654.7,0.27371]
[1736163263080,1.062,3654.8,3654.7,1.10441]
[1736163264083,1.3357,3654.8,3654.7,1.10441]
[1736163265081,1.3357,3654.8,3654.6,44.0078]
[1736163265082,0.27371,3654.7,3654.6,44.0078]
[1736163265479,1.15321,3654.7,3654.6,44.0078]
[1736163265877,1.15321,3654.7,3654.6,44.28152]
[1736163266175,1.15321,3654.7,3654.6,44.0078]
[1736163267087,0.8795,3654.7,3654.0,3.2078]
[1736163267384,0.27376,3654.1,3654.0,3.2078]
[1736163267577,1.33676,3654.1,3654.0,3.2078]
[1736163267971,1.33676,3654.1,3654.0,3.48156]
[1736163268680,1.065,3654.1,3654.0,3.48156]
[1736163270078,1.065,3654.1,3654.0,44.28156]
[1736163270483,1.33876,3654.1,3654.0,44.28156]
[1736163272987,0.27376,3654.1,3654.0,44.28156]
[1736163273181,1.33876,3654.1,3654.0,44.28156]
[1736163280988,1.33876,3654.1,3654.0,45.27054464]
[1736163285690,1.065,3654.1,3654.0,45.27054464]
[1736163287592,1.33876,3654.1,3654.0,45.27054464]
[1736163287783,1.33876,3654.1,3654.0,42.06274464]
[1736163289392,1.065,3654.1,3654.0,42.06274464]
[1736163289593,1.33876,3654.1,3654.0,42.06274464]
[1736163290692,1.33876,3654.1,3654.0,41.07376]
[1736163291897,1.065,3654.1,3654.0,41.07376]
[1736163293798,0.27375,3654.2,3654.1,0.27376]
[1736163294094,0.27375,3654.2,3654.1,1.26274464]
[1736163294095,1.33875,3654.2,3654.1,1.26274464]
[1736163295789,1.33875,3654.2,3654.1,0.27376]
[1736163295990,0.27375,3654.2,3654.1,0.27376]
[1736163296196,1.33875,3654.2,3654.1,1.26274464]
[1736163296995,1.33875,3654.2,3654.1,0.27376]
[1736163298792,1.33875,3654.2,3654.1,1.26274464]
[1736163299094,1.33875,3654.2,3654.1,0.27376]
[1736163300599,0.27376,3654.1,3654.0,40.8]
[1736163300797,0.27377,3653.9,3653.8,0.27378]
[1736163300993,1.26275464,3653.9,3653.8,0.27378]
[1736163301299,1.26275464,3653.9,3653.8,41.07378]
[1736163301796,1.26275464,3653.9,3653.8,40.8]
[1736163301997,1.26275464,3653.9,3653.8,41.07378]
[1736163303194,1.26275464,3653.9,3653.8,40.8]
[1736163303903,1.26275464,3653.9,3653.8,41.07378]
[1736163305603,2.14921046,3654.2,3653.8,41.78898464]
[1736163305807,1.061,3654.1,3654.0,4.47054464]
[1736163306007,1.33476,3654.1,3654.0,4.47054464]
[1736163306198,1.061,3654.1,3654.0,4.47054464]
[1736163306398,1.061,3654.1,3654.0,45.27054464]
[1736163306703,2.14921046,3654.2,3654.0,44.99678464]
[1736163306905,3.49491434,3654.3,3654.1,0.4449]
[1736163306906,2.42295046,3654.3,3654.1,0.4449]
[1736163307102,2.42295046,3654.3,3654.2,0.27375]
[1736163307404,3.48395046,3654.3,3654.2,0.27375]
[1736163307607,3.48395046,3654.3,3654.2,0.69705]
[1736163308802,1.33474,3654.3,3654.2,0.69705]
[1736163310502,1.33474,3654.3,3654.2,0.4233]
[1736163310711,0.27375,3654.2,3654.1,6.38957219]
[1736163310902,1.66933464,3654.2,3654.1,6.38957219]
[1736163311304,1.39558464,3654.2,3654.0,6.38957219]
[1736163311502,1.26274464,3654.1,3654.0,6.38957219]
[1736163312607,0.98898464,3654.1,3653.8,0.27378]
[1736163312907,1.26275464,3653.9,3653.8,0.27378]
[1736163314209,3.41656148,3653.9,3653.8,0.27378]
[1736163314404,2.42757684,3653.9,3653.8,0.27378]
[1736163315406,0.27377,3653.9,3653.8,11.29133015]
[1736163315604,1.33477,3653.9,3653.8,12.28031479]
[1736163315801,0.27377,3653.9,3653.8,12.28031479]
[1736163316012,1.33477,3653.9,3653.8,12.28031479]
[1736163316510,1.061,3653.9,3653.8,5.8907426]
[1736163317813,1.061,3653.9,3653.8,14.41087087]
[1736163318212,1.061,3653.9,3653.8,13.42188623]
[1736163318419,1.33477,3653.9,3653.8,14.41087087]
[1736163319114,1.33477,3653.9,3653.8,5.8907426]
[1736163320516,1.061,3653.9,3653.8,5.8907426]
[1736163320813,1.33477,3653.9,3653.8,5.8907426]
[1736163321008,1.061,3653.9,3653.8,5.8907426]
[1736163322810,1.061,3653.9,3653.8,14.41087087]
[1736163323010,1.061,3653.9,3653.8,23.6657941]
[1736163324718,1.33477,3653.9,3653.8,23.6657941]
[1736163324908,1.061,3653.9,3653.8,23.6657941]
[1736163325615,1.061,3653.9,3653.8,14.41087087]
[1736163325810,1.33477,3653.9,3653.8,13.42188623]
[1736163326217,1.33477,3653.9,3653.8,13.14810623]
[1736163326614,2.19637,3653.9,3653.8,13.14810623]
[1736163327323,2.19637,3653.9,3653.8,4.62797796]
[1736163328019,2.60317,3653.9,3653.8,4.62797796]
[1736163328411,0.27379,3653.7,3653.6,10.31564072]
[1736163328822,0.27379,3653.7,3653.6,11.30462536]
[1736163329119,0.27379,3653.8,3653.7,0.27378]
[1736163329721,0.27379,3653.7,3653.6,11.30462536]
[1736163330021,0.27379,3653.7,3653.6,49.05624463]
[1736163330214,0.27379,3653.7,3653.6,49.33003463]
[1736163332219,0.27379,3653.7,3653.6,49.05624463]
[1736163332422,0.27379,3653.7,3653.6,55.4689298]
[1736163332722,0.27379,3653.7,3653.6,52.5349198]
[1736163333617,2.42716525,3653.8,3653.7,0.27379]
[1736163333816,0.27379,3653.8,3653.7,0.27379]
[1736163334819,0.27379,3653.8,3653.7,4.90233463]
[1736163335219,3.21537525,3653.9,3653.8,0.27378]
[1736163335422,0.07937526,3653.9,3653.8,1.67746464]
[1736163335815,0.07937526,3653.9,3653.8,42.47746464]
[1736163336011,3.23071026,3654.3,3653.8,53.24491444]
[1736163336220,3.23071026,3654.3,3654.2,1.26273464]